bitfinex/quotes_ETHUSD_20250803
["timestamp","ask_amount","ask_price","bid_price","bid_amount"]
[1754234394165,3.0,3473.6,3472.7,4.434]
[1754234394365,0.9237,3472.8,3472.7,4.434]
[1754234395569,0.9237,3472.8,3472.5,0.002]
[1754234395883,0.9237,3472.7,3472.5,0.002]
[1754234396479,0.9237,3472.6,3472.5,0.002]
[1754234397877,0.8737,3472.6,3472.5,0.002]
[1754234400872,7.148,3473.2,3472.5,0.002]
[1754234401076,7.6367,3473.2,3472.5,0.9269]
[1754234401277,7.6367,3473.2,3472.6,0.4785]
[1754234401478,7.5755,3473.2,3472.6,0.4785]
[1754234401665,0.4887,3473.1,3472.6,0.4785]
[1754234401865,0.9162,3473.1,3472.6,0.4785]
[1754234402077,0.4275,3473.1,3472.6,0.4785]
[1754234402277,0.9162,3473.1,3472.5,0.002]
[1754234402476,0.9162,3473.1,3472.7,0.4785]
[1754234402985,7.148,3473.2,3472.8,0.4785]
[1754234403162,3.0,3473.1,3472.9,0.4464]
[1754234403351,7.148,3473.2,3473.0,1.46069]
[1754234403553,7.148,3473.2,3473.1,0.4785]
[1754234404068,7.148,3473.2,3473.0,0.53579]
[1754234404778,7.148,3473.2,3473.0,1.01429]
[1754234405291,7.148,3473.2,3473.1,0.4785]
[1754234405795,7.148,3473.2,3473.1,1.085369]
[1754234406180,7.148,3473.2,3473.1,0.606869]
[1754234406492,7.148,3473.2,3473.1,1.085369]
[1754234406711,0.001,3474.0,3473.1,17.35956142]
[1754234406856,0.001,3474.0,3473.5,16.27419242]
[1754234407061,0.001,3474.0,3473.9,0.144]
[1754234407574,0.001,3474.0,3473.9,4.9105]
[1754234407768,0.001,3474.0,3473.9,5.3569]
[1754234407976,0.001,3474.0,3473.9,5.5009]
[1754234408199,0.001,3474.0,3473.9,6.05099]
[1754234410877,0.001,3474.0,3473.9,1.61899]
[1754234411083,0.001,3474.0,3473.9,6.04999]
[1754234416605,0.001,3474.0,3473.9,6.59999]
[1754234416769,0.001,3474.0,3473.9,9.59999]
[1754234419096,0.001,3474.4,3474.0,3.55]
[1754234419290,0.001,3474.4,3474.1,25.02972672]
[1754234419614,0.001,3474.4,3474.1,26.09862672]
[1754234420105,0.001,3474.4,3474.1,23.64862672]
[1754234420904,0.001,3474.4,3474.1,23.20222672]
[1754234421074,0.001,3474.4,3474.1,1.4705343]
[1754234421275,0.4897,3474.2,3474.1,4.572]
[1754234421505,0.9172,3474.2,3474.1,4.572]
[1754234422004,0.001,3474.2,3474.1,5.07928443]
[1754234422306,0.001,3474.2,3474.1,5.52568443]
[1754234422604,0.001,3474.2,3474.1,7.73189669]
[1754234423016,0.001,3474.2,3474.1,8.28189669]
[1754234423313,0.001,3474.2,3474.1,11.28189669]
[1754234425500,0.001,3474.2,3474.1,25.32109242]
[1754234430596,0.001,3474.2,3474.1,25.43643742]
[1754234431092,0.001,3474.4,3474.2,3.55]
[1754234431288,0.001,3474.4,3474.3,5.00578277]
[1754234431528,0.001,3474.4,3474.3,5.14978277]
[1754234431714,0.001,3474.4,3474.3,8.82342413]
[1754234431919,0.001,3474.4,3474.3,8.79464136]
[1754234432910,0.001,3474.4,3474.3,8.32204136]
[1754234433315,0.001,3474.4,3474.3,8.79464136]
[1754234434706,0.001,3474.4,3474.3,8.32204136]
[1754234436199,0.4645,3475.0,3474.4,3.55]
[1754234436427,0.4645,3475.0,3474.6,19.27419242]
[1754234436628,0.001,3476.4,3474.7,4.426]
[1754234436834,0.4645,3474.9,3474.7,4.426]
[1754234437133,0.4645,3474.9,3474.7,4.8968]
[1754234437323,0.4645,3474.9,3474.8,0.144]
[1754234437525,0.4645,3474.9,3474.8,2.73376666]
[1754234438442,0.9466,3474.9,3474.8,2.73376666]
[1754234438620,0.9466,3474.9,3474.8,0.144]
[1754234439140,0.9466,3474.9,3474.8,4.569]
[1754234441062,0.9466,3474.9,3473.9,0.55009]
[1754234441213,0.9466,3474.9,3473.6,6.921]
[1754234441214,0.4645,3474.8,3474.2,0.144]
[1754234441414,0.9466,3474.8,3474.3,4.425]
[1754234441729,0.55,3475.5,3473.1,6.918]
[1754234441730,0.9466,3474.7,3473.1,6.918]
[1754234441928,0.9466,3474.6,3473.7,0.144]
[1754234442263,0.9466,3474.5,3473.8,4.425]
[1754234442561,0.9466,3474.4,3473.8,4.425]
[1754234442761,3.55,3475.0,3473.8,4.425]
[1754234442943,0.9466,3474.3,3473.8,4.425]
[1754234443117,0.55,3474.8,3473.8,4.425]
[1754234443482,0.9466,3474.2,3473.8,4.425]
[1754234443751,0.9466,3474.1,3473.8,4.425]
[1754234443947,3.0,3474.8,3473.8,4.425]
[1754234444153,0.9466,3474.0,3473.8,4.425]
[1754234444317,30.0,3475.0,3473.8,4.425]
[1754234444521,0.9466,3473.9,3473.8,4.425]
[1754234445858,0.4645,3474.2,3473.8,4.425]
[1754234446040,0.9466,3474.1,3473.8,4.92898]
[1754234446239,0.9466,3474.0,3473.8,4.425]
[1754234446440,0.4645,3473.9,3473.8,4.425]
[1754234446831,0.4645,3473.9,3473.8,4.569]
[1754234448149,0.4645,3473.9,3473.4,0.002]
[1754234448463,0.9466,3473.8,3473.7,4.426]
[1754234450754,0.4645,3473.8,3473.7,4.426]
[1754234450930,0.001,3474.2,3473.7,4.869]
[1754234451131,0.001,3474.2,3473.7,4.426]
[1754234451337,0.9466,3474.1,3473.7,4.426]
[1754234451522,0.001,3474.2,3473.7,4.426]
[1754234451723,0.9466,3474.0,3473.7,4.426]
[1754234451920,0.4645,3473.9,3473.7,4.426]
[1754234452124,0.4645,3473.8,3473.7,4.91608]
[1754234454041,0.4645,3474.1,3473.7,4.91608]
[1754234454236,0.4831,3474.2,3473.7,4.91608]
[1754234454237,0.4645,3474.0,3473.7,4.91608]
[1754234454550,0.4645,3474.0,3473.8,0.54176694]
[1754234454746,0.4831,3474.2,3473.8,0.54176694]
[1754234454950,0.4645,3473.9,3473.8,0.54176694]
[1754234456147,0.4645,3474.1,3473.8,0.54176694]
[1754234456375,0.4831,3474.2,3473.8,0.54176694]
[1754234456664,0.4645,3474.0,3473.8,0.54176694]
[1754234456841,0.4645,3473.9,3473.8,0.54176694]
[1754234458051,0.001,3474.2,3473.8,0.54176694]
[1754234458364,0.001,3474.2,3473.9,0.99656278]
[1754234458568,0.001,3474.2,3474.1,0.144]
[1754234459066,0.001,3474.2,3474.1,0.5969]
[1754234459265,0.001,3474.2,3474.1,0.144]
[1754234459568,0.9449,3474.2,3474.1,4.425]
[1754234460270,0.9449,3474.2,3473.8,0.144]
[1754234460471,0.9449,3474.2,3473.6,0.002]
[1754234460472,0.9439,3474.1,3473.9,4.425]
[1754234460678,0.9439,3474.1,3473.6,0.002]
[1754234460679,0.9439,3474.0,3473.6,0.002]
[1754234460890,3.0,3473.5,3472.6,0.4]
[1754234461193,3.0,3473.5,3471.8,0.4549]
[1754234461194,30.9439,3473.4,3472.3,0.4]
[1754234461465,30.9439,3473.4,3472.3,0.544]
[1754234461466,3.0,3473.2,3472.3,0.544]
[1754234461666,0.9439,3473.3,3472.3,0.544]
[1754234461853,3.0,3473.8,3472.3,0.544]
[1754234461854,0.9439,3473.1,3472.3,0.544]
[1754234462254,0.4469,3473.5,3472.5,0.48369769]
[1754234462430,0.4469,3473.5,3472.9,0.144]
[1754234462634,0.497,3473.4,3472.5,0.002]
[1754234462936,0.497,3473.4,3472.6,4.425]
[1754234463134,0.4469,3473.3,3472.7,0.144]
[1754234463332,0.4469,3473.6,3473.1,0.144]
[1754234463580,3.0,3473.9,3473.1,5.0219]
[1754234463778,0.9439,3473.5,3473.1,4.569]
[1754234463959,0.497,3473.5,3473.1,4.569]
[1754234464161,0.4469,3473.4,3473.1,4.569]
[1754234465937,0.55,3474.4,3473.1,4.569]
[1754234465938,3.55,3474.3,3473.1,4.569]
[1754234466143,1.857,3474.1,3473.2,0.4529]
[1754234466343,0.9439,3474.0,3473.2,0.4529]
[1754234466543,0.4469,3473.9,3473.2,0.4529]
[1754234466772,0.9439,3473.9,3473.2,0.4529]
[1754234466972,0.9439,3473.8,3473.1,4.569]
[1754234467140,0.497,3473.8,3473.1,4.569]
[1754234467475,0.4469,3473.7,3473.1,4.569]
[1754234467834,0.4469,3473.7,3473.1,5.52409]
[1754234470744,0.001,3474.2,3473.1,5.52409]
[1754234471079,0.4469,3474.0,3473.1,5.0219]
[1754234471442,0.497,3473.9,3473.1,5.0219]
[1754234471781,0.4469,3473.8,3473.1,5.0219]
[1754234472161,0.4469,3473.8,3473.1,4.569]
[1754234472361,0.4469,3473.8,3473.2,0.4529]
[1754234473550,0.4469,3473.8,3473.1,4.571]
[1754234473953,0.4469,3473.8,3473.1,5.0239]
[1754234474571,3.4469,3473.8,3473.1,0.5989]
[1754234474780,3.80919,3473.8,3473.2,4.425]
[1754234475081,0.9439,3473.7,3473.2,4.425]
[1754234475288,0.9439,3473.6,3473.2,4.425]
[1754234475666,0.4469,3473.5,3473.2,4.425]
[1754234476076,0.4469,3473.5,3473.2,4.8779]
[1754234476390,3.80919,3473.8,3473.3,0.4529]
[1754234476391,4.25609,3473.8,3473.3,0.4529]
[1754234476591,1.190109,3473.7,3473.2,4.425]
[1754234476887,7.148,3473.9,3473.6,0.144]
[1754234477191,7.148,3473.9,3473.7,4.8779]
[1754234477689,7.148,3473.9,3473.8,0.4529]
[1754234478257,7.148,3473.9,3473.7,4.425]
[1754234478688,7.148,3473.9,3473.7,4.8779]
[1754234479091,7.148,3473.9,3473.7,4.425]
[1754234479262,7.148,3473.9,3473.7,4.8779]
[1754234479808,7.148,3473.9,3473.8,0.4529]
[1754234480826,0.001,3474.2,3473.8,1.57359]
[1754234481155,0.001,3474.2,3473.8,1.12069]
[1754234481409,0.001,3474.2,3473.9,0.4529]
[1754234481568,0.001,3474.2,3473.9,0.9274]
[1754234481992,0.001,3474.2,3473.9,0.4745]
[1754234482182,0.001,3474.2,3474.0,0.4529]
[1754234482488,0.001,3474.2,3474.1,4.424]
[1754234483094,0.001,3474.2,3474.1,4.8769]
[1754234483313,0.001,3474.2,3474.1,4.424]
[1754234483795,0.001,3474.2,3473.9,0.4529]
[1754234483968,0.001,3474.2,3474.0,4.424]
[1754234484378,0.001,3474.2,3474.0,4.8769]
[1754234485286,0.001,3474.2,3473.8,0.144]
[1754234485468,0.4479,3474.2,3474.1,4.424]
[1754234486365,0.4479,3474.2,3474.1,0.4529]
[1754234486366,0.001,3474.2,3474.1,0.4529]
[1754234486588,0.001,3474.2,3474.1,4.8759]
[1754234489025,0.001,3474.2,3474.1,0.4529]
[1754234489234,0.9267,3474.2,3474.1,4.423]
[1754234490534,0.4756,3474.2,3474.1,4.423]
[1754234490893,0.001,3474.2,3474.1,4.423]
[1754234493423,0.001,3474.2,3474.1,5.3601]
[1754234493631,0.001,3474.2,3474.1,5.9737]
[1754234495758,0.001,3474.2,3474.1,4.566]
[1754234497862,0.001,3474.2,3474.1,5.0608]
[1754234499363,0.9267,3474.2,3474.1,4.422]
[1754234499526,0.4756,3474.2,3474.1,4.422]
[1754234499726,0.001,3474.2,3474.1,4.422]
[1754234499943,0.001,3474.2,3474.1,4.9168]
[1754234500120,0.001,3474.2,3474.1,5.42288]
[1754234500469,0.001,3474.2,3474.1,5.60108]
[1754234500772,0.001,3474.2,3474.1,5.42288]
[1754234512024,0.001,3474.2,3474.1,5.62986443]
[1754234512229,0.001,3474.2,3474.1,5.60108]
[1754234513221,0.001,3474.2,3474.1,5.42288]
[1754234513520,0.001,3474.2,3474.1,0.50608]
[1754234513671,0.9267,3474.2,3474.1,4.42]
[1754234513876,0.4756,3474.2,3474.1,4.42]
[1754234514416,0.001,3474.2,3474.1,4.9148]
[1754234514604,0.001,3474.2,3474.1,4.94358443]
[1754234514798,0.001,3474.2,3474.1,5.45234287]
[1754234515572,0.001,3474.2,3474.1,5.42355844]
[1754234515767,0.001,3474.2,3474.1,5.45234287]
[1754234519523,0.001,3474.2,3474.1,5.42355844]
[1754234519686,0.001,3474.2,3474.1,5.56755844]
[1754234521201,0.001,3474.2,3474.1,8.74575844]
[1754234522531,0.001,3474.6,3474.2,0.55]
[1754234522729,0.001,3474.6,3474.5,16.26116335]
[1754234523033,0.001,3474.6,3474.5,20.82416335]
[1754234523236,0.4346,3474.6,3474.5,4.563]
[1754234523526,0.8921,3474.6,3474.5,4.563]
[1754234524084,0.8921,3474.6,3474.5,0.144]
[1754234524331,0.8921,3474.6,3474.5,4.562]
[1754234525277,0.8921,3474.6,3473.4,0.4743]
[1754234525492,0.8911,3474.5,3474.3,0.144]
[1754234525648,0.8911,3474.5,3474.4,4.418]
[1754234527076,0.8911,3474.5,3474.3,0.144]
[1754234527281,0.001,3474.6,3474.4,4.418]
[1754234527836,0.8911,3474.5,3474.4,4.418]
[1754234528070,0.001,3474.6,3474.4,4.418]
[1754234528274,0.8911,3474.5,3474.4,4.418]
[1754234535194,0.8911,3474.5,3473.4,0.002]
[1754234535392,0.4336,3474.4,3473.5,4.418]
[1754234535683,0.144,3474.3,3473.8,0.144]
[1754234535883,0.144,3474.3,3473.9,4.418]
[1754234536185,0.8911,3474.2,3473.9,4.418]
[1754234536387,0.144,3474.3,3473.9,4.418]
[1754234536587,0.8911,3474.1,3473.9,4.418]
[1754234536764,0.8911,3474.0,3473.9,4.418]
[1754234536950,0.144,3474.3,3473.9,4.418]
[1754234537155,0.8911,3474.0,3473.9,4.418]
[1754234540692,0.8911,3474.0,3473.8,0.144]
[1754234540986,0.144,3474.0,3473.9,4.418]
[1754234541579,1.0351,3474.0,3473.9,4.418]
[1754234547824,7.148,3474.3,3473.9,5.0343]
[1754234548029,0.4336,3474.2,3473.9,4.8903]
[1754234548321,0.4336,3474.2,3474.1,0.144]
[1754234549824,1.72691,3474.2,3473.5,0.002]
[1754234549982,1.72691,3474.2,3473.9,0.144]
[1754234549983,0.9229,3474.2,3473.9,0.144]
[1754234550181,7.148,3474.3,3474.0,4.417]
[1754234550422,0.9176,3474.1,3474.0,4.417]
[1754234551993,0.4283,3474.1,3474.0,4.417]
[1754234552528,7.148,3474.3,3474.0,4.868]
[1754234552903,7.148,3474.3,3474.0,4.417]
[1754234553103,7.148,3474.3,3474.1,0.451]
[1754234553610,7.148,3474.3,3474.1,0.595]
[1754234553810,7.148,3474.3,3474.1,1.11402]
[1754234554013,7.148,3474.3,3474.2,0.6292]
[1754234554389,7.148,3474.3,3474.2,0.451]
[1754234557633,0.001,3474.4,3474.2,0.451]
[1754234557835,0.001,3474.4,3474.3,4.867]
[1754234558137,0.001,3474.4,3474.3,5.564002]
[1754234564106,0.001,3474.4,3474.3,21.82516535]
[1754234564314,0.001,3474.4,3474.3,22.00336535]
[1754234564542,0.001,3474.4,3474.3,22.86853835]
[1754234564843,0.001,3474.4,3474.3,5.564002]
[1754234565222,0.001,3474.4,3474.3,0.812364]
[1754234565424,0.4293,3474.4,3474.3,4.559]
[1754234565647,0.9186,3474.4,3474.3,4.559]
[1754234565844,0.9186,3474.4,3474.3,0.144]
[1754234566065,0.9186,3474.4,3474.3,4.559]
[1754234566269,0.9186,3474.4,3474.3,5.0717374]
[1754234566567,0.4293,3474.4,3474.3,5.0717374]
[1754234566970,0.001,3474.4,3474.3,5.5227374]
[1754234568091,0.001,3474.4,3474.3,0.6567374]
[1754234568362,0.9186,3474.4,3474.3,4.415]
[1754234569415,0.4293,3474.4,3474.3,4.415]
[1754234569744,0.9186,3474.4,3474.3,4.415]
[1754234570171,0.4293,3474.4,3474.3,4.415]
[1754234571132,0.001,3474.4,3474.3,4.415]
[1754234571356,0.001,3474.4,3474.3,5.32497844]
[1754234571585,0.001,3474.4,3474.3,4.87397844]
[1754234571737,0.4293,3474.4,3474.3,4.87397844]
[1754234574780,0.9186,3474.4,3474.3,4.87397844]
[1754234576307,0.9186,3474.4,3474.0,0.002]
[1754234576450,1.0616,3474.3,3474.1,4.414]
[1754234576645,0.001,3474.4,3474.1,4.414]
[1754234576963,0.9176,3474.2,3474.0,0.002]
[1754234577184,0.001,3474.4,3474.1,4.414]
[1754234577484,0.144,3474.2,3474.1,4.414]
[1754234577984,1.0616,3474.2,3474.1,4.414]
[1754234578482,1.0616,3474.2,3474.0,0.002]
[1754234578651,0.144,3474.2,3474.0,0.002]
[1754234578852,0.9195,3474.1,3474.0,0.002]
[1754234579147,1.39506062,3474.1,3474.0,0.002]
[1754234579649,1.94506062,3474.1,3474.0,0.002]
[1754234579980,38.3785625,3474.1,3474.0,0.002]
[1754234581400,37.8285625,3474.1,3474.0,0.002]
[1754234581571,7.9725625,3474.1,3474.0,0.002]
[1754234582497,8.5225625,3474.1,3474.0,0.002]
[1754234582699,3.0,3474.0,3473.9,0.002]
[1754234582897,34.59445625,3474.0,3473.9,0.002]
[1754234583062,35.07175625,3474.0,3473.9,0.002]
[1754234583464,38.98081875,3474.0,3473.9,0.002]
[1754234583700,55.7919821,3474.0,3473.9,0.002]
[1754234583862,56.16888374,3474.0,3473.9,0.002]
[1754234584805,39.90772039,3474.0,3473.9,0.002]
[1754234586662,40.02317739,3474.0,3473.9,0.002]
[1754234587565,46.41393899,3474.0,3473.9,0.002]
[1754234591394,46.29848199,3474.0,3473.9,0.002]
[1754234593216,3.55,3473.6,3473.5,0.002]
[1754234593415,38.109,3473.6,3473.5,0.002]
[1754234593909,39.0285,3473.6,3473.5,0.002]
[1754234599017,42.9355625,3473.6,3473.5,0.002]
[1754234601514,44.70105921,3473.6,3473.5,0.002]
[1754234601720,46.54442171,3473.6,3473.5,0.002]
[1754234605093,46.92132335,3473.6,3473.5,0.002]
[1754234609001,46.54442171,3473.6,3473.5,0.002]
[1754234610104,45.62392171,3473.6,3473.5,0.4777]
[1754234610295,45.62392171,3473.6,3473.5,0.002]
[1754234610500,44.802825,3473.6,3473.5,0.002]
[1754234611558,44.327625,3473.6,3473.5,0.002]
[1754234612509,44.802825,3473.6,3473.5,0.002]
[1754234613116,45.17972664,3473.6,3473.5,0.002]
[1754234615108,44.802825,3473.6,3473.5,0.002]
[1754234622142,44.327625,3473.6,3473.5,0.002]
[1754234622315,44.802825,3473.6,3473.5,0.002]
[1754234624142,45.091325,3473.6,3473.5,0.002]
[1754234624464,44.802825,3473.6,3473.5,0.002]
[1754234627823,45.17972664,3473.6,3473.5,0.002]
[1754234630228,44.70452664,3473.6,3473.5,0.002]
[1754234630559,45.17972664,3473.6,3473.5,0.002]
[1754234631665,45.17972664,3473.6,3473.4,0.002]
[1754234631666,0.55,3473.2,3473.1,0.002]
[1754234631860,54.24717954,3473.2,3473.1,0.002]
[1754234632053,55.09328118,3473.2,3473.1,0.002]
[1754234632242,55.56848118,3473.2,3473.1,0.002]
[1754234632845,55.71248118,3473.2,3473.1,0.002]
[1754234633047,57.55584368,3473.2,3473.1,0.002]
[1754234634524,43.55,3472.9,3472.8,0.002]
[1754234634845,42.53801379,3472.9,3472.8,0.002]
[1754234635048,43.48241379,3472.9,3472.8,0.002]
[1754234635280,45.9648696,3472.9,3472.8,0.002]
[1754234637959,3.55,3472.8,3472.5,0.002]
[1754234638163,3.55,3472.4,3472.1,0.002]
[1754234638369,49.83517954,3472.2,3472.1,0.002]
[1754234638531,52.05544368,3472.2,3472.1,0.002]
[1754234638948,53.12974368,3472.2,3472.1,0.002]
[1754234639141,53.12974368,3472.2,3472.0,0.002]
[1754234639142,33.92690164,3472.1,3472.0,0.002]
[1754234639341,41.00120164,3472.1,3472.0,0.002]
[1754234639547,43.48365745,3472.1,3472.0,0.002]
[1754234639741,43.48365745,3472.1,3471.4,0.002]
[1754234639742,2.282,3472.0,3471.4,0.002]
[1754234639971,49.97917954,3471.7,3471.4,0.002]
[1754234640172,3.55,3471.4,3469.8,0.4538]
[1754234640371,33.55,3470.8,3470.2,0.4538]
[1754234640530,3.55,3470.3,3470.2,0.4538]
[1754234640737,38.106,3470.3,3470.2,0.4538]
[1754234641033,3.55,3470.1,3469.0,0.002]
[1754234641284,40.0,3469.8,3469.5,0.1802]
[1754234641439,40.0,3469.6,3469.5,0.1802]
[1754234641761,40.0,3469.6,3469.0,0.002]
[1754234641762,0.144,3469.6,3469.0,0.002]
[1754234642167,0.694,3469.6,3469.5,0.4538]
[1754234643247,0.694,3469.6,3469.5,0.634]
[1754234643951,0.694,3469.6,3469.5,0.4538]
[1754234646269,0.144,3469.6,3469.5,0.634]
[1754234647766,0.144,3469.6,3469.5,0.4538]
[1754234648074,0.144,3469.6,3469.5,0.634]
[1754234649062,0.144,3469.6,3469.5,0.636]
[1754234649373,0.144,3469.6,3469.5,0.002]
[1754234649374,43.2423625,3469.6,3469.5,0.002]
[1754234649564,42.4866625,3469.6,3469.5,0.002]
[1754234649752,42.9443625,3469.6,3469.5,0.002]
[1754234650365,42.0140625,3469.6,3469.5,0.002]
[1754234651069,7.0510625,3469.6,3469.5,0.4558]
[1754234651239,11.4640625,3469.6,3469.5,0.636]
[1754234651438,7.0510625,3469.6,3469.5,0.636]
[1754234653467,7.0510625,3469.6,3469.5,0.4558]
[1754234657255,7.0510625,3469.6,3469.5,0.636]
[1754234657873,1.26189561,3469.9,3469.5,0.636]
[1754234658158,1.26189561,3469.9,3469.6,0.634]
[1754234658370,1.26189561,3469.9,3469.7,0.634]
[1754234658572,1.26189561,3469.9,3469.8,0.4538]
[1754234659351,1.26189561,3469.9,3469.8,0.634]
[1754234660077,1.26189561,3469.9,3469.8,0.4538]
[1754234660279,1.73449561,3469.9,3469.5,0.002]
[1754234660585,0.144,3469.6,3469.5,0.002]
[1754234661875,38.8933,3469.6,3469.5,0.002]
[1754234662457,40.00412837,3469.6,3469.5,0.002]
[1754234664361,43.91119087,3469.6,3469.5,0.002]
[1754234666488,42.90349087,3469.6,3469.5,0.002]
[1754234666692,43.45349087,3469.6,3469.5,0.002]
[1754234667030,43.36119087,3469.6,3469.5,0.002]
[1754234667215,46.77943794,3469.6,3469.5,0.002]
[1754234668911,47.15633958,3469.6,3469.5,0.002]
[1754234669310,46.77943794,3469.6,3469.5,0.002]
[1754234670302,47.15633958,3469.6,3469.5,0.002]
[1754234671316,47.15633958,3469.6,3469.1,0.002]
[1754234671317,3.55,3469.3,3469.1,0.002]
[1754234671622,40.43510739,3469.2,3469.1,0.002]
[1754234671827,41.51120739,3469.2,3469.1,0.002]
[1754234672410,42.37843139,3469.2,3469.1,0.002]
[1754234675012,45.41543139,3469.2,3469.1,0.002]
[1754234675213,42.37843139,3469.2,3469.1,0.002]
[1754234675608,33.55,3469.1,3468.2,5.002]
[1754234675805,3.55,3468.9,3468.2,5.002]
[1754234676006,0.694,3468.3,3468.2,5.002]
[1754234676219,38.108,3468.3,3468.2,5.002]
[1754234676417,40.01848881,3468.3,3468.2,5.002]
[1754234676729,41.47606005,3468.3,3468.2,5.002]
[1754234677336,41.85296169,3468.3,3466.4,0.1802]
[1754234677639,3.55,3467.8,3467.0,0.4958]
[1754234677922,3.55,3467.4,3466.5,0.4958]
[1754234678102,3.55,3467.0,3466.5,0.4958]
[1754234678289,3.55,3467.2,3466.5,0.4958]
[1754234678290,33.694,3466.6,3466.5,0.4958]
[1754234678491,38.108,3466.6,3466.5,0.4958]
[1754234679892,38.108,3466.6,3466.0,0.1802]
[1754234680094,33.0,3466.4,3466.3,0.4958]
[1754234680399,3.55,3466.1,3465.7,0.1802]
[1754234680599,0.144,3465.8,3465.7,0.1802]
[1754234681127,0.144,3465.8,3465.7,0.676]
[1754234683400,0.144,3465.8,3465.7,0.4958]
[1754234683795,0.144,3465.8,3464.8,0.144]
[1754234684003,0.144,3465.2,3465.1,0.4958]
[1754234684306,0.144,3465.2,3465.1,0.676]
[1754234686802,0.144,3465.2,3465.1,0.4958]
[1754234687050,0.144,3465.2,3465.1,0.676]
[1754234687327,0.144,3465.2,3465.1,0.4958]
[1754234687897,0.144,3465.2,3465.1,0.676]
[1754234689459,0.144,3465.2,3465.1,0.4958]
[1754234692510,0.144,3465.2,3465.0,0.00289]
[1754234692709,0.144,3465.2,3465.1,0.4958]
[1754234693458,0.144,3465.2,3465.1,0.4978]
[1754234695038,0.144,3465.9,3465.1,0.85085919]
[1754234695344,0.144,3465.9,3465.4,0.144]
[1754234695541,0.144,3465.9,3465.5,0.676]
[1754234695756,4.417,3466.5,3465.2,1.72079233]
[1754234695757,0.92521675,3466.6,3465.7,16.35417407]
[1754234696058,0.144,3466.5,3465.8,0.676]
[1754234696356,0.144,3466.5,3466.0,0.144]
[1754234696520,0.144,3466.5,3466.1,0.676]
[1754234696725,0.92521675,3466.6,3466.2,0.676]
[1754234696927,1.06921675,3466.6,3466.3,0.1802]
[1754234697127,1.06921675,3466.6,3466.4,0.1802]
[1754234697459,1.06921675,3466.6,3466.5,0.4958]
[1754234698142,1.06921675,3466.6,3466.5,0.676]
[1754234699472,0.92521675,3466.6,3466.5,0.676]
[1754234699671,0.92521675,3466.6,3466.5,0.82]
[1754234701373,0.05782604,3466.6,3466.5,0.82]
[1754234701536,0.144,3467.4,3466.5,1.01756944]
[1754234701737,0.144,3467.4,3466.9,0.144]
[1754234701936,0.4429,3468.1,3467.0,0.69764338]
[1754234702138,0.144,3467.6,3467.1,1.32416434]
[1754234702369,0.144,3467.6,3467.2,0.4886]
[1754234702672,0.144,3467.6,3467.1,0.65536434]
[1754234702871,0.55,3468.4,3466.9,4.9046]
[1754234703070,0.144,3467.3,3466.9,4.9046]
[1754234703238,0.144,3467.3,3467.0,0.4886]
[1754234703433,0.144,3467.3,3467.1,0.4886]
[1754234703850,0.144,3467.3,3466.9,4.872]
[1754234704045,0.144,3467.3,3467.0,0.4886]
[1754234704737,0.144,3467.3,3466.9,4.872]
[1754234704932,0.144,3467.3,3467.0,0.4886]
[1754234705171,0.144,3467.3,3466.7,0.144]
[1754234705371,0.144,3467.3,3467.1,0.4886]
[1754234705676,3.0,3468.3,3467.2,0.4886]
[1754234705677,0.144,3467.6,3467.2,0.4886]
[1754234705873,0.144,3467.6,3467.2,0.6688]
[1754234706277,0.144,3467.6,3467.3,0.4886]
[1754234706480,3.9070625,3468.0,3467.3,0.51744088]
[1754234706680,0.144,3467.8,3467.3,0.8128]
[1754234706855,0.144,3467.8,3467.3,0.144]
[1754234707175,0.144,3467.8,3467.4,0.6688]
[1754234707362,0.144,3467.8,3467.4,0.1802]
[1754234707676,0.144,3467.8,3467.5,0.51743922]
[1754234707878,0.144,3468.0,3467.6,0.1802]
[1754234708096,0.144,3468.0,3467.7,0.4886]
[1754234708844,0.4429,3468.5,3467.7,0.4886]
[1754234708845,0.4429,3468.5,3467.7,0.51743755]
[1754234709082,0.144,3468.2,3467.8,0.4886]
[1754234709785,0.4429,3468.1,3467.5,0.4886]
[1754234709982,0.144,3467.9,3467.5,0.4886]
[1754234710486,0.144,3467.9,3467.6,0.4886]
[1754234710684,0.144,3468.2,3467.7,0.144]
[1754234710982,0.4429,3468.1,3467.7,0.6326]
[1754234711184,0.4951,3468.1,3467.7,0.6326]
[1754234711385,0.4429,3468.0,3467.7,0.6326]
[1754234711684,0.144,3467.9,3467.8,0.4886]
[1754234713792,3.4429,3468.6,3467.8,0.4886]
[1754234713988,0.144,3468.1,3467.8,0.4886]